Cogmind - Beta 13 @@@ ROGUE MODE // 2024.03.17 @ 21:29:43 Player: daddywarlord Result: Self-destructed Performance ------------- Evolutions (2) 1000 Regions Visited (3) 600 Robots Destroyed (16) 80 Value Destroyed (545) 545 Prototype IDs (0) 0 Alien Tech Used (0) 0 Bonus (0) 0 TOTAL SCORE: 2225 Bonus ------- None Cogmind --------- Core Integrity 371/550 Matter 246/300 Energy 250/250 System Corruption 8% Temperature Cool (0) Movement Walking (190) Ox1 Location -8/Materials Parts ------- > --- POWER (1) -------- Ion Engine > --- PROPULSION (4) --- Aluminum Leg Aluminum Leg > --- UTILITY (4) ------ Large Storage Unit Power Shielding Improved Light Armor Plating > --- WEAPON (2) ------- Minigun > --- INVENTORY (15) --- Ion Engine Ion Engine Light Ion Engine Aluminum Leg Aluminum Leg Heat Sink Hardened Medium Armor Plating Particle Gun Light Assault Rifle Light Cannon Grenade Launcher Peak State ------------ > --- POWER ------------ Ion Engine > --- PROPULSION ------- Aluminum Leg Aluminum Leg Aluminum Leg Aluminum Leg > --- UTILITY ---------- Large Storage Unit Sensor Array Power Shielding Improved Light Armor Plating > --- WEAPON ----------- Heavy EM Pulse Gun Beam Rifle > --- INVENTORY -------- Ion Engine Ion Engine Light Ion Engine Aluminum Leg Aluminum Leg Heat Sink Small Storage Unit Hardened Medium Armor Plating Particle Gun Light Assault Rifle Light Cannon Grenade Launcher [Rating: 16] Favorites ----------- Power Ion Engine Engine Ion Engine Propulsion Aluminum Leg Leg Aluminum Leg Utility Power Shielding Device Sensor Array Storage Large Storage Unit Protection Power Shielding Weapon Light Assault Rifle Energy Gun Beam Rifle Ballistic Gun Light Assault Rifle Ballistic Cannon Light Cannon Launcher Grenade Launcher Build | -11 -10 -9 -8 ------- Run | Yrd Mat Mat Mat Slots Evolved 4 | . . 2 2 Power . | . . . . Propulsion 2 | . . 1 1 Utility 2 | . . 1 1 Weapon . | . . . . Parts Attached 22 | 6 6 6 4 Power 1 | 1 . . . Engine 1 | 1 . . . Core . | . . . . Reactor . | . . . . Propulsion 6 | 2 1 1 2 Treads . | . . . . Leg 6 | 2 1 1 2 Wheel . | . . . . Hover . | . . . . Flight . | . . . . Utility 6 | 1 1 3 1 Device 1 | . . . 1 Storage 2 | 1 . 1 . Processor . | . . . . Hackware . | . . . . Protection 3 | . 1 2 . Artifact . | . . . . Weapon 9 | 2 4 2 1 Energy Gun 2 | . . 2 . Energy Cannon . | . . . . Ballistic Gun 4 | 2 1 . 1 Ballistic Cannon 2 | . 2 . . Launcher 1 | . 1 . . Special Weapon . | . . . . Impact Weapon . | . . . . Slashing Weapon . | . . . . Piercing Weapon . | . . . . Special Melee Weapon . | . . . . Unidentified Prototypes . | . . . . Parts Lost 4 | . . . 4 Power . | . . . . Propulsion 2 | . . . 2 Utility 1 | . . . 1 Weapon 1 | . . . 1 Highest Loss Streak 4 | . . . 4 To Critical Strikes . | . . . . Average Slot Usage (%) 96 | . 93 99 94 Engine 11 | . 14 11 9 Leg 30 | . 27 33 34 Device 1 | . . . 7 Storage 11 | . 14 11 9 Protection 15 | . 9 21 18 Energy Gun 7 | . . 12 15 Ballistic Gun 8 | . 14 4 1 Ballistic Cannon 5 | . 9 4 . Launcher 1 | . 3 . . Naked Turns . | . . . . Heaviest Build 38 | 12 15 38 36 Greatest Support 40 | 20 20 30 40 Greatest Overweight (x) 1 | . 1 1 . Average Overweight (x) . | . . . . Largest Inventory Capacity 15 | 8 8 15 15 Average Capacity 11 | 6 8 14 15 Most Carried 14 | 5 8 14 13 Average Carried 7 | 1 4 9 11 Final Capacity 15 | 8 8 15 15 Final Carried 14 | 1 5 14 11 Class Distribution -------------------- 85% | Mutant 14% | Scavenger-Mutant Dominant Class ---------------- Mutant | -10/Materials Mutant | -9/Materials Scavenger-Mutant | -8/Materials Resources | -11 -10 -9 -8 ----------- Run | Yrd Mat Mat Mat Matter Collected 502 | 258 90 150 4 Remotely . | . . . . Salvage Created 604 | . 14 530 60 Parts 39 | . 1 35 3 Haulers Intercepted . | . . . . Recyclers Shooed . | . . . . Parts Field Recycled . | . . . . Retrieved Matter . | . . . . Parts Self-Destructed . | . . . . Prevented . | . . . . Kills | -11 -10 -9 -8 ------- Run | Yrd Mat Mat Mat Combat Hostiles Destroyed 13 | . 1 11 1 Guns 10 | . 1 8 1 Cannons 3 | . . 3 . Classes Destroyed 6 | . 1 5 . Worker 1 | . . 1 . Mechanic 1 | . . 1 . Watcher 1 | . . 1 . Grunt 11 | . 1 9 1 Duelist 1 | . . 1 . Sentry 1 | . . 1 . Best Kill Streak 5 | . 1 5 1 Combat Bots Only 3 | . 1 3 1 Max Kills in Single Turn 2 | . 1 2 1 Gunslinging . | . . . . Exploded . | . . . . Melee . | . . . . Uniques/NPCs Destroyed . | . . . . Combat | -11 -10 -9 -8 -------- Run | Yrd Mat Mat Mat Hostile Shots Fired 88 | . 11 30 47 Missed 22 | . 3 10 9 Damage Taken 1145 | . 90 293 762 Core 260 | . 22 59 179 Absorbed by Shields . | . . . . Redirected to Shielding 21 | . . 8 13 Core Remaining (%) 92 | 100 91 85 . Volleys Fired 57 | 1 10 28 18 Largest 2 | 2 2 2 2 Hottest 101 | 40 55 101 101 Shots Fired 105 | 2 20 56 27 Gun 83 | 2 10 44 27 Cannon 21 | . 9 12 . Launcher 1 | . 1 . . Special . | . . . . Kinetic 53 | 2 19 24 8 Thermal 26 | . . 16 10 Explosive 1 | . 1 . . Electromagnetic 25 | . . 16 9 Robot Hit Streak 12 | . 2 7 12 Robot Miss Streak 3 | . 2 3 1 Penetration Max . | . . . . Secondary Targets 2 | . . 2 . Max Gunslinging Chain 1 | . . 1 . Shots Hit Robots 67 | . 10 34 23 Core Hits 30 | . 2 23 5 Critical Kills . | . . . . Critical Parts Destroyed . | . . . . Critical Strikes 2 | . . 2 . Blast 2 | . . 2 . Melee Attacks . | . . . . Impact . | . . . . Slashing . | . . . . Piercing . | . . . . Sneak Attacks . | . . . . Combat Hostiles . | . . . . Follow-up Attacks . | . . . . Damage Inflicted 1003 | . 124 526 353 Guns 758 | . 49 356 353 Cannons 212 | . 74 138 . Explosions 33 | . 1 32 . Melee . | . . . . Ramming . | . . . . Kinetic 420 | . 123 184 113 Thermal 334 | . . 220 114 Explosive 1 | . 1 . . Electromagnetic 248 | . . 122 126 Impact . | . . . . Slashing . | . . . . Piercing . | . . . . Highest Corruption 8 | . 1 . 8 Average Corruption 1 | . 1 . 4 Corruption Purged . | . . . . Corruption Blocked . | . . . . Effects 4 | . 2 . 2 Matter Fused 1 | . . . 1 Parts Rejected 1 | . . . 1 Data Loss (major) 1 | . 1 . . Alerts 1 | . 1 . . Overload Shots . | . . . . Overflow Damage . | . . . . Projectiles . | . . . . Explosions . | . . . . Melee . | . . . . Knockbacks 4 | . 2 2 . Impact . | . . . . Kinetic 4 | . 2 2 . Secondary . | . . . . Self-Inflicted Damage 22 | . 2 20 . Shots 2 | . 1 1 . Rammed . | . . . . Targets Rammed . | . . . . Kicked . | . . . . Crushed . | . . . . Highest Temperature 395 | . 60 192 395 Average Temperature 90 | . 28 60 178 Received Heat Transfer 492 | . 48 174 270 Effects 1 | . . . 1 Damage (minor) 1 | . . . 1 Siege Activations . | . . . . Robots Corrupted . | . . . . Combat Hostiles . | . . . . Parts Fried 1 | . . . 1 Impact Corruptions . | . . . . Robots Melted . | . . . . Combat Hostiles . | . . . . Parts Melted 1 | . . 1 . Heat Transferred 827 | . . 531 296 Parts Sabotaged . | . . . . Parts Stolen . | . . . . Parts Stripped . | . . . . Power Chain Reactions 1 | . . 1 . Alert | -11 -10 -9 -8 ------- Run | Yrd Mat Mat Mat Peak Influence 308 | . 83 308 170 Initial 130 | . . . 130 Average 96 | . 46 150 136 Maximum Alert Level 1 | . . 1 . Low Security (%) 86 | 100 100 62 100 Level 1 13 | . . 37 . Level 2 . | . . . . Level 3 . | . . . . Level 4 . | . . . . Level 5 . | . . . . High Security . | . . . . Max Security . | . . . . Squads Dispatched 2 | . 1 1 . Investigation . | . . . . Extermination . | . . . . Reinforcement 2 | . 1 1 . Assault . | . . . . Garrison . | . . . . Intercept . | . . . . Searches Triggered . | . . . . Construction Impeded . | . . . . Haulers Reinforced . | . . . . Active Scanning Responses . | . . . . Cargo Convoy Interrupts . | . . . . Stealth | -11 -10 -9 -8 --------- Run | Yrd Mat Mat Mat Distress Signals 2 | . . 2 . Communications Jammed . | . . . . Distress Signals . | . . . . Times Spotted 26 | . 6 16 4 Peak Tracking Total 4 | . 2 3 4 Tactical Retreats 1 | . . . 1 Traps | -11 -10 -9 -8 ------- Run | Yrd Mat Mat Mat Traps Triggered 4 | . 2 . 2 Indirectly . | . . . . Trap Hack Attempts . | . . . . Triggered . | . . . . Disarmed . | . . . . Reprogrammed . | . . . . Reused . | . . . . Traps Extracted . | . . . . Installed . | . . . . Triggered . | . . . . Machines | -11 -10 -9 -8 ---------- Run | Yrd Mat Mat Mat Machines Disabled 1 | . . . 1 Max in Single Turn 1 | . . . 1 Machines Repaired . | . . . . Machines Dismantled . | . . . . Machines Sabotaged . | . . . . Overloaded Fab Kills . | . . . . Hacking | -11 -10 -9 -8 --------- Run | Yrd Mat Mat Mat Machines Accessed 1 | . . . 1 Terminals . | . . . . Fabricators . | . . . . Repair Stations . | . . . . Recycling Units 1 | . . . 1 Scanalyzers . | . . . . Garrison Access . | . . . . Total Hacks 1 | . . . 1 Successful 1 | . . . 1 Failed . | . . . . Catastrophic . | . . . . Database Lockouts . | . . . . Manual . | . . . . Terminals . | . . . . Fabricators . | . . . . Repair Stations . | . . . . Recycling Units 1 | . . . 1 Scanalyzers . | . . . . Garrison Access . | . . . . Terminal Hacks . | . . . . Fabricator Hacks . | . . . . Repair Station Hacks . | . . . . Recycling Unit Hacks 1 | . . . 1 Recycle Component 1 | . . . 1 Scanalyzer . | . . . . Garrison Access Hacks . | . . . . Unauthorized Hacks . | . . . . Terminals . | . . . . Fabricators . | . . . . Repair Stations . | . . . . Recycling Units . | . . . . Scanalyzers . | . . . . Garrison Access . | . . . . Data Cores Recovered . | . . . . Used . | . . . . Hacking Detections . | . . . . Full Trace Events . | . . . . Feedback Events . | . . . . Feedback Blocked . | . . . . Robot Schematics Acquired . | . . . . Robots Built . | . . . . Authchips . | . . . . Time . | . . . . Total Robot Build Rating . | . . . . Part Schematics Acquired . | . . . . Parts Built . | . . . . Authchips . | . . . . Time . | . . . . Total Part Build Rating . | . . . . Parts Repaired . | . . . . Time . | . . . . Parts Recycled 1 | . . . 1 Recycled Matter . | . . . . Retrieved Matter . | . . . . Retrieved Components . | . . . . Parts Scanalyzed . | . . . . Part Schematics Acquired . | . . . . Parts Damaged . | . . . . Bothacking | -11 -10 -9 -8 ------------ Run | Yrd Mat Mat Mat Used RIF Installer . | . . . . Robots Hacked . | . . . . Non-combat . | . . . . Combat . | . . . . Robot Hacks Applied . | . . . . Relay Couplers Released . | . . . . Fabnet Peak Effective % . | . . . . Robots Rewired . | . . . . Allies Hacked . | . . . . Hacks Repelled . | . . . . Allies | -11 -10 -9 -8 -------- Run | Yrd Mat Mat Mat Total Allies . | . . . . Largest Group . | . . . . Highest-Rated Group . | . . . . Highest-Rated Ally . | . . . . Total Orders . | . . . . Ally Attacks . | . . . . Total Damage . | . . . . Kills . | . . . . Allies Corrupted . | . . . . Allies Melted . | . . . . Intel | -11 -10 -9 -8 ------- Run | Yrd Mat Mat Mat Robot Analysis Total . | . . . . Derelict Logs Recovered . | . . . . Drone Launches . | . . . . Drone Recoveries . | . . . . Exploration | -11 -10 -9 -8 ------------- Run | Yrd Mat Mat Mat Turns Passed 1048 | 68 420 371 189 Spaces Moved 583 | 51 309 140 83 Core 12 | 12 . . . Treads . | . . . . Legs 571 | 39 309 140 83 Wheels . | . . . . Hover . | . . . . Flight . | . . . . Fastest Speed 50 | 50 120 120 120 Average Speed 133 | 103 120 182 120 Slowest Speed 190 | 120 190 190 120 Overloaded Moves . | . . . . Propulsion Burnouts . | . . . . Robots Hopped . | . . . . Cave-ins Triggered . | . . . . Exploration Rate (%) 17 | 4 42 12 13 Regions Visited 3 Branch Regions . Pre-discovered Areas . | . . . . Known Exits Taken . | . . . . Unknown Exits Taken 3 | 1 1 1 . Scrap Searched . | . . . . Spaces Dug . | . . . . Terrain Destroyed 14 | . 8 6 . Melee . | . . . . Projectile . | . . . . AOE 14 | . 8 6 . Terrain Rammed . | . . . . Walls Destroyed . | . . . . Machines Disabled . | . . . . Actions | -11 -10 -9 -8 --------- Run | Yrd Mat Mat Mat Total 752 | 64 338 204 146 Wait 59 | . 5 14 40 Move 580 | 50 308 139 83 Hop . | . . . . Pick Up 29 | 7 8 13 1 Fast Attach . | . . . . Attach 18 | 6 5 4 3 Detach 3 | . 1 2 . Swap 4 | . 1 2 1 Drop 2 | . . 2 . Fire 57 | 1 10 28 18 Melee . | . . . . Ram . | . . . . Kick . | . . . . Crush . | . . . . Escape Stasis . | . . . . Rewire . | . . . . Trap . | . . . . Miscellaneous . | . . . . Route ------- -11/Scrapyard -10/Materials (discovered 3 exits: [*Mat] / [*Min x2]) -9/Materials -8/Materials History --------- Turn | Location | Event 4 | -11/Scrapyard | Discovered new exit (range 15) 69 | -11/Scrapyard | Entered Materials 261 | -10/Materials | Discovered new exit (range 16) 281 | -10/Materials | Discovered new exit (range 11) 309 | -10/Materials | Build established: Mutant 475 | -10/Materials | Discovered new exit (range 12) 489 | -10/Materials | Entered another Materials area 489 | -9/Materials | Evolved 2 slots: Propulsion x1, Utility x1 727 | -9/Materials | Discovered new exit (range 16) 860 | -9/Materials | Entered another Materials area 860 | -8/Materials | Evolved 2 slots: Propulsion x1, Utility x1 1049 | -8/Materials | Self-destructed Last Messages --------------- rejected. 01014_ Critical hit (Burn: +37). 01015_ Overheating: Power Shielding damaged (-19). 01016_ Beam Rifle destroyed. 01017_ Sensor Array destroyed. 01017_ System corrupted by crushing effect (+5). 01021_ M-13 Machinist repairs G-47 Trooper. 01024_ R-06 Scavenger collects Corrupted Aluminum Leg. 01029_ R-06 Scavenger collects Hvy. EM Pulse Gun. 01031_ System corrupted: Matter fused (-6). 01032_ R-06 Scavenger collects Corrupted Particle Gun. 01036_ R-06 Scavenger collects Corrupted Aluminum Leg. 01039_ M-13 Machinist repairs B-36 Bruiser. 01039_ Critical hit (Burn: +37). 01043_ Aluminum Leg destroyed. Map ----- +----------------------------------------------------+ | ???????????#???????# #???????????? | | ???????????????????# #???????????? | | ???????????????????# #######?????? | | ???????????????????# !!! #?????? | | ???????????????????#= !!! #?????? | | ???????????????????# !!! #?????? | | ???????????????????# #?????? | | ???????????????????# !#?????? | | ???????????????????# """ ####??? | | ???????????? ?????# """ #??? | | ???????????? """???# """ #??? | | ????????????""""" ## #??? | | ????????????""""" + ! #??? | | ????????????""""" ## ##########??? | | ???????????? """???# #?##########? | | ???????????? ?????# #?# / #? | | ???????????????????# #?# #? | | ??????????########## ### [ #? | | ?????? # !#? | | ??????H + ! #? | | ?????? # #? | | ??????? ###/######## # #? | | ??????????# # # #? | | ??????????# + + #? | | ??????????# """ ##+##########? | | ????????????""" ??# % @ #?????? | | ????????????""" ????# " gb#?????? | | ??????????? ??????# ""Sm #?????? | | ??????????# ????????# "" #?????? | | ????????????????????# #?????? | | ????????????????????# #?????? | | ????????????????????########?????? | | ?????????????????????????????????? | | ?????????????????????????????????? | | ?????????????????????????????????? | | ?????????????????????????????????? | | ?????????????????????????????????? | | ?????????????????????????????????? | | ?????????????????????????????????? | | ?????????????????????????????????? | | ?????????????????????????????????? | | ?????????????????????????????????? | | ?????????????????????????????????? | | ?????????????????????????????????? | | ?????????????????????????????????? | | ?????????????????????????????????? | | ?????????????????????????????????? | | ?????????????????????????????????? | | ?????????????????????????????????? | | ?????????????????????????????????? | +----------------------------------------------------+ Best States ------------- Heat Dissipation 31 Energy Generation 10 Energy Capacity 250 Matter Stores 300 Matter Capacity 300 Sight Range 16 Robot Scan Range 14 Terrain Scan Density 10 Armor Coverage 225 Power Shielding 33 Evasion (%) 55 Item Schematics ----------------- None Robot Schematics ------------------ None Fabricated ------------ Nothing Alien Tech Used ----------------- None Achievements -------------- None Challenges ------------ None Game ------ Seed CompactShadingDiverter Manual? 0 Play Time 00:22:44 Cumulative 8.3 hours Start 2024.03.17 @ 21:07:32 End 2024.03.17 @ 21:29:43 Sessions 1 Manual Loads 0 Difficulty Rogue Special Mode None Game No. 22 Rogue 22 Adventurer 0 Explorer 0 Win Type - Total 0 Types 0/0/0/0/0/0/0/0/0 Lore% 4 Gallery% 9 Achievement% 7 Wizard Run 0 Options --------- Layout 1 ASCII 0 Keyboard 0 Movement Mouse Keybinds 0 Fullscreen 1 Font 24/Smallcaps Map View 50x35 Zoom Use 0% Tactical HUD 1 Map Filters NONE Filters NONE Steam 1 RUN: e6e9b35a-e114-44be-8fc0-5016c6d0ed0b